{"text_format":"1","workbook":"xlsx","n_sheets":4,"sheets":["Foglio1","Foglio2","Foglio3","Foglio4"],"not_rendered":{"charts":0,"images":3,"macros":1,"external_links":0,"defined_names":1,"comments":3,"pivot_tables":0},"unopened":[],"bounds":{"document_bytes":16777216,"sheet_cells":100000,"rows_first":2000,"rows_last":500,"rows_between":2000,"halvings":0,"cell_chars":16384,"cell_head_chars":4096},"cells_cut":0,"cells_raw":0,"read":"whole","date_system":"1900"}

{"sheet":"Foglio1","index":0,"n_rows":126,"n_cols":18,"rows_kept":126,"cut":false,"hidden":false,"merged":[[18,2,29,2],[31,1,32,1],[31,5,32,5],[14,3,14,11],[31,9,32,9],[18,8,29,8],[31,2,32,2],[31,4,32,4],[31,6,32,6],[31,8,32,8],[31,10,32,10],[31,3,32,3],[31,7,32,7],[0,14,32,14],[7,5,8,5],[31,11,32,11],[4,11,6,11],[0,5,0,9],[4,6,4,8],[18,12,29,12],[18,6,29,6],[31,12,32,12],[10,5,11,5],[1,3,3,11],[5,6,13,8],[15,3,16,11],[35,3,35,5],[46,11,47,11],[4,3,6,3],[18,4,29,4],[35,9,35,11],[18,9,18,10]]}
[null,null,null,null,null,"SQUADRA / COGNOME E NOME"]
[null,null,null,{"$f":"VLOOKUP(Foglio2!C9,Foglio4!L10:O26,2)","v":0},null,null,null,null,null,null,null,null,null,null,null,null,null,1]
[null,null,null,null,null,null,null,null,null,null,null,null,null,null,null,null,null,1]
[null,null,null,null,null,null,null,null,null,null,null,null,null,null,null,null,null,1]
[null,null,null,"NOME KATA",null,"TURNI","PUNTEGGIO",null,null,"SANZIONE",null,"CATEGORIA",null,null,null,null,null,1]
[null,null,null,null,null,null,{"$f":"VLOOKUP(R8,Foglio2!A19:B24,2)+D32+F32+H32+J32+L47-L32","v":0},null,null,null,null,null,null,null,null,null,null,1]
[null,null,null,null,null,"TERZO",null,null,null,null,null,null,null,null,null,null,null,1]
[null,null,null,{"$f":"VLOOKUP(R10,A50:B124,2)","v":"………………………"},null,null,null,null,null,null,null,{"$f":"VLOOKUP(Foglio2!C46,Foglio2!A45:B56,2)","v":"………………………"},null,null,null,null,null,1]
[null,null,null,"SORTEGGIO SQUADRA/CONCORRENTE",null,null,null,null,null,null,null,"CINTURA"]
[null,null,null,{"$f":"VLOOKUP(Foglio2!C9,Foglio4!L10:O26,1)","v":1},null,"SECONDO ",null,null,null,"SQUALIFICA",null,{"$f":"VLOOKUP(Foglio2!C71,Foglio2!A70:B78,2)","v":"………………………"},null,null,null,null,null,1]
[null,null,null,"SOCIETA' SPORTIVA",null,null,null,null,null,null,null,"SESSO"]
[null,null,null,{"$f":"VLOOKUP(Foglio2!C9,Foglio4!L10:O26,3)","v":0},null,null,null,null,null,null,null,{"$f":"VLOOKUP(Foglio2!C58,Foglio2!A57:B61,2)","v":"………………………"}]
[null,null,null,"CODICE",null,"PRIMO",null,null,null,null,null,"STILE"]
[null,null,null,{"$f":"VLOOKUP(Foglio2!C9,Foglio4!L10:O26,4)","v":0},null,null,null,null,null,null,null,{"$f":"VLOOKUP(Foglio2!C63,Foglio2!A62:B69,2)","v":"………………………"},null,null,null,null,null,{"$f":"G6","v":0}]
[]
[null,null,null,"CRITERI - PARAMETRI - VALORI "]
[]
[]
[null,"GIUDIZIO",null,"CONFORMITA'",null,"PRESTAZIONE TECNICA",null,"PRESTAZIONE ATLETICA",null,null,null,"PENALITA'"]
[null,"Ottimo",null,null,null,null,null,null,null,-0.5]
[null,"+"]
[null,"Buono",null,null,null,null,null,null,null,-0.4]
[null,"+"]
[null,"Sufficiente ",null,null,null,null,null,null,null,-0.3]
[null,"Mediocre"]
[null,"Insufficiente",null,null,null,null,null,null,null,-0.2]
[null,"-"]
[null,"Gravemente Insufficiente",null,null,null,null,null,null,null,-0.1]
[null,"-"]
[null,"Totalmente Insufficiente",null,null,null,null,null,null,null,0]
[]
[null,"PUNTEGGIO PARZIALE",null,{"$f":"VLOOKUP(R2,Foglio2!H15:I25,2)","v":0},null,{"$f":"VLOOKUP(R3,Foglio2!H15:I25,2)","v":0},null,{"$f":"VLOOKUP(R4,Foglio2!H15:I25,2)","v":0},null,null,null,{"$f":"VLOOKUP(R7,Foglio2!A10:B18,2)","v":0}]
[]
[]
[]
[null,null,null,"Sito: www.teamkarateortani.it",null,null,null,null,null,"Email: segreteria@teamkarateortani.it "]
[]
[]
[]
[]
[]
[]
[]
[]
[]
[]
[]
[]
[]
[]
[1,"………………………",1]
[2,"ANAN"]
[3,"JION"]
[4,"PAPUREN"]
[5,"ANAN DAI"]
[6,"JITTE"]
[7,"PASSAI"]
[8,"ANNANKO"]
[9,"JYUROKU"]
[10,"PINAN 1-5"]
[11,"AOYAGI"]
[12,"KANCHIN"]
[13,"ROHAI"]
[14,"BASSAI DAI"]
[15,"KANKU DAI"]
[16,"SAIFA (SAIHA)"]
[17,"BASSAI SHO"]
[18,"KANKU SHO"]
[19,"SANCHIN"]
[20,"CHATANYARA KUSHANKU"]
[21,"KANSHU"]
[22,"SANSEIRU"]
[23,"CHINTE"]
[24,"KOSOKUN (KUSHANKU)"]
[25,"SANSERU"]
[26,"CHINTO"]
[27,"KOSOKUN (KUSHANKU) DAI"]
[28,"SEICHIN"]
[29,"ENPI"]
[30,"KOSOKUN (KUSHANKU) SHO"]
[31,"SEIENCHIN"]
[32,"FUKYGATA 1-2"]
[33,"KOSOKUN SHIHO"]
[34,"SEIPAI"]
[35,"GANKAKU"]
[36,"KURURUNFA"]
[37,"SEIRUI"]
[38,"GARYU"]
[39,"KUSANKU"]
[40,"SEISAN (SEISHAN)"]
[41,"GEKISAI (GEKSAI) 1-2"]
[42,"MATSUMURA ROHAI"]
[43,"SHINPA"]
[44,"GOJUSHIHO"]
[45,"MATSUKAZE"]
[46,"SHINSEI"]
[47,"GOJUSHIHO DAI"]
[48,"MATUSUMURA BASSAI"]
[49,"SHISOCHIN"]
[50,"GOJUSHIHO SHO"]
[51,"MEIKYO"]
[52,"SOCHIN"]
[53,"HAKUCHO"]
[54,"MYOJO"]
[55,"SUPARINPEI"]
[56,"HANGETSU"]
[57,"NAIFANCHIN (NAIHANSHIN) 1-3"]
[58,"TEKKI 1-3"]
[59,"HAUFA"]
[60,"NIJUSHIHO"]
[61,"TENSHO"]
[62,"HEIAN 1-5"]
[63,"NIPAIPO"]
[64,"TOMARI BASSAI"]
[65,"HEIKU"]
[66,"NISEISHI"]
[67,"USEISHI (GOJUSHIHO)"]
[68,"ISHIMINE BASSAI"]
[69,"OHAN"]
[70,"UNSU (UNSHU)"]
[71,"ITOSU ROHAI 1-3"]
[72,"PACHU"]
[73,"WANKAN"]
[74,"JIIN"]
[75,"PAIKU"]
[76,"WANSHU "]

{"sheet":"Foglio2","index":1,"n_rows":77,"n_cols":20,"rows_kept":77,"cut":false,"hidden":false,"merged":[]}
[]
[1,0]
[2,0.08]
[3,0.16]
[4,0.24]
[5,0.32]
[6,0.4]
[]
[null,null,{"$f":"D9","v":1},{"$f":"17-E9-F9-G9-H9-I9-J9-K9-L9-M9-N9-O9-P9-Q9-R9-S9-T9","v":1},1,1,1,1,1,1,1,1,1,1,1,1,1,1,1,1]
[]
[1,0]
[2,0.1]
[3,0.2]
[4,0.3]
[5,0.4,null,null,null,null,null,1,0]
[6,0.5,null,null,null,null,null,2,{"$f":"J16/3","v":6.6666666666666666E-2},0.2]
[7,0.6,null,null,null,null,null,3,0.13333333333333333,0.4]
[null,null,null,null,null,null,null,4,0.19999999999999998,0.6]
[null,null,null,null,null,null,null,5,0.26666666666666666,0.8]
[1,0,null,null,null,null,null,6,0.33333333333333331,1]
[2,5,null,null,null,null,null,7,0.39999999999999997,1.2]
[3,6,null,null,null,null,null,8,0.46666666666666662,1.4]
[4,7,null,null,null,null,null,9,0.53333333333333333,1.6]
[null,null,null,null,null,null,null,10,0.6,1.8]
[null,null,null,null,null,null,null,11,0.66666666666666663,2]
[]
[]
[]
[]
[]
[]
[]
[]
[]
[]
[]
[]
[]
[]
[]
[1,"………………………",1,"………………………"]
[2,"ESPRESSIVITA'",null,"INDIVIDUALE"]
[3,"SINCRONISMO",null,"SQUADRA"]
[]
[]
[1,"………………………",1]
[2,"BAMBINI A fino a 7 anni"]
[3,"BAMBINI B  da 8 a 9 anni "]
[4,"RAGAZZI C da 10 a 11 anni"]
[5,"RAGAZZI D da 12 a 13 anni"]
[6,"CADETTI da 14 a 15 anni"]
[7,"JUNIORES da 16 a 17 anni"]
[8,"UNDER 21 da 18 a 20 anni"]
[9,"SENIORES da 16 a 35 anni"]
[10,"VETERANI A da 36 a 45 anni"]
[11,"VETERANI B oltre 46 anni"]
[]
[1,"………………………",1]
[2,"MASCHILE"]
[3,"FEMMINILE"]
[]
[]
[1,"………………………",1]
[2,"WADO-RYU"]
[3,"SHOTOKAN"]
[4,"SHITO-RYU"]
[5,"GOJU-RYU"]
[6,"ALTRI STILI"]
[]
[]
[1,"………………………",1]
[2,"BIANCA"]
[3,"GIALLA"]
[4,"ARANCIONE"]
[5,"VERDE"]
[6,"BLU"]
[7,"MARRONE-NERA"]

{"sheet":"Foglio3","index":2,"n_rows":2,"n_cols":7,"rows_kept":2,"cut":false,"hidden":false,"merged":[[1,0,31,22],[0,6,0,16]]}
[null,null,null,null,null,null,"HANTEI"]
[{"$f":"Foglio1!R14","v":0}]

{"sheet":"Foglio4","index":3,"n_rows":26,"n_cols":18,"rows_kept":26,"cut":false,"hidden":false,"merged":[[8,7,8,8],[8,5,8,6],[1,9,2,16],[9,17,9,19],[17,17,17,19],[15,17,15,19],[13,17,13,19],[8,17,8,19],[11,17,11,19],[16,17,16,19],[14,17,14,19],[12,17,12,19],[10,17,10,19],[8,9,8,11],[4,9,5,16]]}
[null,"W"]
[null,"W",null,null,null,null,null,null,null,"VERBALE ELENCO PARTECIPANTI"]
[null,"W"]
[null,"W"]
[null,"W",null,null,null,null,null,null,null,"DENOMINAZIONE: CENTRO AGONISTICO REGIONALE  - SVOLTASI: MONTESILVANO - IL: 29/02/2017"]
[null,"W"]
[null,"W"]
[null,"W"]
[null,"KATA","C.","P. T.","P. A.","PENALITA'",null,"PUNTEGGIO",null,"SORTEGGIO",null,null,"SQUADRA/COGNOME E NOME","SOCIETA' SPORTIVA","CODICE","ISCRIZIONE","CLASSIFICA"]
[null,null,null,null,null,null,null,null,null,null,null,1,null,null,null,"1'","❶"]
[null,null,null,null,null,null,null,null,null,null,null,2,null,null,null,"2'","❷","CATEGORIA"]
[null,null,null,null,null,null,null,null,null,null,null,3,null,null,null,"3'","❸"]
[null,null,null,null,null,null,null,null,null,null,null,4,null,null,null,"4'","❹","STILE"]
[null,null,null,null,null,null,null,null,null,null,null,5,null,null,null,"5'","❺"]
[null,null,null,null,null,null,null,null,null,null,null,6,null,null,null,"6'","❻","CINTURA"]
[null,null,null,null,null,null,null,null,null,null,null,7,null,null,null,"7'","❼"]
[null,null,null,null,null,null,null,null,null,null,null,8,null,null,null,"8'","❽","SESSO"]
[null,null,null,null,null,null,null,null,null,null,null,9,null,null,null,"9'","❾"]
[null,null,null,null,null,null,null,null,null,null,null,10,null,null,null,"10'","❿"]
[null,null,null,null,null,null,null,null,null,null,null,11,null,null,null,"11'","⓫"]
[null,null,null,null,null,null,null,null,null,null,null,12,null,null,null,"12'","⓬"]
[null,null,null,null,null,null,null,null,null,null,null,13,null,null,null,"13'","⓭"]
[null,null,null,null,null,null,null,null,null,null,null,14,null,null,null,"14'","⓮"]
[null,null,null,null,null,null,null,null,null,null,null,15,null,null,null,"15'","⓯"]
[null,null,null,null,null,null,null,null,null,null,null,16,null,null,null,"16'","⓰"]
[null,null,null,null,null,null,null,null,null,null,null,17,"………………………","………………………","………………………"]